[Event "Polish University-ch Open 2024"]
[Site "Lublin"]
[Date "2024.02.23"]
[Round "3.3"]
[White "Szpar, Milosz"]
[Black "Leskiewicz, Ignacy"]
[Result "1-0"]
[ECO "B07"]
[WhiteElo "2495"]
[BlackElo "2180"]
[Annotator "TA"]
[PlyCount "56"]
[EventDate "2024.02.22"]
[EventType "swiss"]
[EventCountry "POL"]
[SourceTitle "playchess.com"]
[Source "ChessBase"]
[SourceQuality "1"]
[TimeControl "600+3"]

{[%evp 9,56,35,49,39,51,39,40,37,56,53,58,52,55,60,61,64,62,33,33,19,39,46,53,48,56,66,72,83,95,89,141,79,178,59,65,59,117,105,218,172,599,588,637,647,725,718,593,382,1208]} 1. e4 {[%emt 0:00:02]} d6 {[%emt 0:00:01]} 2. d4 {[%emt 0:00:10]} Nf6 {[%emt 0:00:01]} 3. Bd3 {[%emt 0:00:04]} e5 {[%emt 0:00:05]} 4. c3 {[%emt 0:00:04]} Nbd7 {[%emt 0:00:03]} 5. Nf3 {[%emt 0:00:02]} c6 {[%emt 0:00:04]} 6. O-O {[%emt 0:00:04]} Be7 {[%emt 0:00:29]} 7. Re1 {[%emt 0:00:01]} O-O {[%emt 0:00:03]} 8. Nbd2 {[%emt 0:00:02][%cal Bb1d2,Bd2f1,Bf1g3][%mdl 32] White is slightly better.} Rb8 {[%emt 0:01:38]} 9. a4 {[%emt 0:00:24]} Qc7 {[%emt 0:00:15]} 10. Nf1 {[%emt 0:00:03]} Re8 {[%emt 0:00:35]} 11. Ng3 {[%emt 0:00:53]} Nf8 {[%emt 0:00:04]} 12. h3 {[%emt 0:00:14]} a5 {[%emt 0:00:45]} 13. c4 {[%emt 0:01:32]} Ne6 {[%emt 0:00:39]} 14. Be3 {[%emt 0:00:52]} exd4 {[%emt 0:01:09]} 15. Nxd4 {[%emt 0:00:01]} Bf8 {[%emt 0:00:00]} 16. Bc2 {[%emt 0:00:11]} Nc5 {[%emt 0:00:25][%cal Rc5e4]} 17. Qf3 {[%emt 0:00:33]} Nfd7 {[%emt 0:00:32]} 18. Rad1 {[%emt 0:00:11] White is more active.} g6 {[%emt 0:00:48] Inhibits Nh5.} 19. b3 {[%emt 0:00:21]} Bg7 {[%emt 0:00:01]} (19... b6 $142) 20. Rd2 {[%emt 0:01:15]} ({White should try} 20. Ndf5 {Nxg7 is the strong threat.} Ne5 21. Qf4 gxf5 22. exf5) 20... Ne6 {[%emt 0:00:06] [#]} (20... Ne5 $16 {was called for.} 21. Qe2 b6) 21. Qd1 {[%emt 0:00:21]} (21. Ndf5 $1 $18) 21... Nxd4 $14 {[%emt 0:01:30]} 22. Bxd4 {[%emt 0:00:02]} Nf6 {[%emt 0:00:01]} (22... Be5 $14) 23. Qa1 $16 {[%emt 0:00:23]} Qe7 {[%emt 0:00:27]} (23... Re6 $16) 24. Rde2 {[%emt 0:00:15]} Nh5 $2 {[%emt 0:00:26]} (24... Bd7 {is tougher.} 25. e5 dxe5 26. Bxe5 (26. Rxe5 Be6 $16) 26... Ra8) 25. Nxh5 $18 {[%emt 0:00:08]} Bxd4 {[%emt 0:00:02]} 26. Qxd4 {[%emt 0:00:01][%csl Gh5][%cal Rd4g7] [#]} gxh5 {[%emt 0:00:00]} 27. e5 {[%emt 0:00:01]} Qg5 {[%emt 0:00:28]} 28. h4 {[%emt 0:01:02]} dxe5 $2 {[%emt 0:00:02] Weighted Error Value: White=0.33/Black=0.51.  Mistake:       	White=2     	Black=5      Inaccurate:     	White=1     	---        OK:         	White=8     	Black=6      Best:        	White=1     	---} (28... Qg7 29. Re3 (29. Qxd6 Bh3 $18) 29... Bg4) 1-0

[Event "Polish University-ch Open 2024"]
[Site "Lublin"]
[Date "2024.02.23"]
[Round "3.4"]
[White "Bilczewski, Kacper"]
[Black "Psyk, Radoslaw"]
[Result "0-1"]
[ECO "B02"]
[WhiteElo "2139"]
[BlackElo "2461"]
[Annotator "RC"]
[PlyCount "80"]
[EventDate "2024.02.22"]
[EventType "swiss"]
[EventCountry "POL"]
[SourceTitle "playchess.com"]
[Source "ChessBase"]
[SourceQuality "1"]
[TimeControl "600+3"]

1. e4 {[%emt 0:00:03]} Nf6 {[%emt 0:00:02]} 2. e5 {[%emt 0:00:06]} Nd5 {[%emt 0:00:02]} 3. c4 {[%emt 0:00:02]} Nb6 {[%emt 0:00:01]} 4. c5 {[%emt 0:00:01]} Nd5 {[%emt 0:00:01]} 5. Nc3 {[%emt 0:00:04]} Nxc3 {[%emt 0:00:18]} 6. dxc3 {[%emt 0:00:02]} e6 {[%emt 0:00:02]} 7. Be3 {[%emt 0:00:07]} Nc6 {[%emt 0:00:26]} 8. Nf3 {[%emt 0:00:06]} b6 {[%emt 0:00:00]} 9. cxb6 {[%emt 0:00:35]} axb6 {[%emt 0:00:02]} 10. Bd3 {[%emt 0:00:06]} Ba6 {[%emt 0:01:20]} 11. O-O {[%emt 0:00:22]} Qc8 {[%emt 0:00:11]} 12. Re1 {[%emt 0:01:23]} Bxd3 {[%emt 0:00:50]} 13. Qxd3 {[%emt 0:00:03]} Qa6 {[%emt 0:00:01]} 14. Qe4 {[%emt 0:01:18]} Qa4 {[%emt 0:00:28]} 15. c4 {[%emt 0:00:13]} Be7 {[%emt 0:01:07]} 16. b3 {[%emt 0:00:13]} Qa3 {[%emt 0:00:06]} 17. Nd4 {[%emt 0:00:27]} Nxd4 {[%emt 0:01:04]} 18. Bxd4 {[%emt 0:01:14]} O-O {[%emt 0:00:30]} 19. Re3 {[%emt 0:00:20]} f5 {[%emt 0:00:42]} 20. exf6 {[%emt 0:00:09]} Bxf6 {[%emt 0:00:02]} 21. Rg3 {[%emt 0:01:24]} Ra5 {[%emt 0:00:59]} 22. Bxf6 {[%emt 0:00:49]} Rxf6 {[%emt 0:00:02]} 23. Qd4 {[%emt 0:00:02]} Rf7 {[%emt 0:00:14]} 24. h3 {[%emt 0:00:10]} Raf5 {[%emt 0:00:09]} 25. Rf3 {[%emt 0:01:35]} Rxf3 {[%emt 0:00:09]} 26. gxf3 {[%emt 0:00:01]} Qa8 {[%emt 0:00:51]} 27. Qe4 {[%emt 0:00:06]} Qf8 {[%emt 0:00:01]} 28. Kg2 {[%emt 0:00:02]} Rf4 {[%emt 0:00:23]} 29. Qd3 {[%emt 0:00:04]} Qe7 {[%emt 0:00:11]} 30. Rd1 {[%emt 0:00:04]} d6 {[%emt 0:00:01]} 31. Re1 {[%emt 0:00:08]} Qg5+ {[%emt 0:00:08]} 32. Kh2 {[%emt 0:00:15]} Qf6 {[%emt 0:00:01]} 33. Kg2 {[%emt 0:00:03]} Rf5 {[%emt 0:00:22]} 34. Re4 {[%emt 0:00:04]} h5 {[%emt 0:00:01]} 35. h4 {[%emt 0:00:03]} Qg6+ {[%emt 0:00:04]} 36. Kf1 {[%emt 0:00:02]} Qf6 {[%emt 0:00:11]} 37. Ke2 {[%emt 0:00:02]} Kf7 {[%emt 0:00:52]} 38. a4 {[%emt 0:00:01]} Qb2+ {[%emt 0:00:00]} 39. Ke3 {[%emt 0:00:06]} Qc1+ {[%emt 0:00:00]} 40. Qd2 {[%emt 0:00:01]} Rxf3+ {[%emt 0:00:00]} 0-1

[Event "Polish University-ch Open 2024"]
[Site "Lublin"]
[Date "2024.02.23"]
[Round "3.5"]
[White "Niedbala, Bartlomiej"]
[Black "Musial, Tomasz"]
[Result "1/2-1/2"]
[ECO "C11"]
[WhiteElo "2382"]
[BlackElo "2171"]
[Annotator "TA"]
[PlyCount "138"]
[EventDate "2024.02.22"]
[EventType "swiss"]
[EventCountry "POL"]
[SourceTitle "playchess.com"]
[Source "ChessBase"]
[SourceQuality "1"]
[TimeControl "600+3"]

{[%evp 76,138,33,0,0,0,0,0,0,0,0,0,0,4,4,4,4,-368,-375,-382,-362,-320,-302,-263,0,0,0,0,0,0,0,0,0,0,0,0,0,0,963,0,2019,1266,1296,0,0,0,0,0,0,0,0,0,0,0,0,0,0,0,0,0,0,0,0,0,0]} 1. e4 {[%emt 0:00:02]} e6 {[%emt 0:00:00]} 2. d4 {[%emt 0:00:01]} d5 {[%emt 0:00:01]} 3. Nc3 {[%emt 0:00:02]} Nf6 {[%emt 0:00:02]} 4. e5 {[%emt 0:00:03]} Nfd7 {[%emt 0:00:02]} 5. f4 {[%emt 0:00:02]} c5 {[%emt 0:00:01]} 6. Nf3 {[%emt 0:00:01]} Nc6 {[%emt 0:00:02]} 7. Be3 {[%emt 0:00:02]} a6 {[%emt 0:00:01]} 8. a3 {[%emt 0:00:18]} cxd4 {[%emt 0:00:28]} 9. Nxd4 {[%emt 0:00:03]} Bc5 {[%emt 0:00:03]} 10. Be2 {[%emt 0:01:02]} Nxd4 {[%emt 0:02:18]} 11. Bxd4 {[%emt 0:00:03]} b5 {[%emt 0:00:02]} 12. Bxc5 {[%emt 0:00:42]} Nxc5 {[%emt 0:00:03]} 13. Qd4 {[%emt 0:00:02]} Qb6 {[%emt 0:00:19]} 14. O-O {[%emt 0:00:59]} Rb8 {[%emt 0:01:09]} 15. Kh1 {[%emt 0:00:32]} Ne4 {[%emt 0:01:30]} 16. Qxb6 {[%emt 0:00:32]} Rxb6 {[%emt 0:00:02]} 17. Nxe4 {[%emt 0:00:04]} dxe4 {[%emt 0:00:02]} 18. Kg1 {[%emt 0:00:33]} Ke7 {[%emt 0:00:26]} 19. Kf2 {[%emt 0:00:12]} f5 {[%emt 0:01:16]} 20. Rfd1 {[%emt 0:00:28]} Rd8 {[%emt 0:00:10]} 21. Ke3 {[%emt 0:00:14]} Rxd1 {[%emt 0:00:29]} 22. Rxd1 {[%emt 0:00:02]} Bb7 {[%emt 0:00:01]} 23. c3 {[%emt 0:05:13]} Bd5 {[%emt 0:00:16]} 24. g4 {[%emt 0:00:00]} g6 {[%emt 0:00:17]} 25. gxf5 {[%emt 0:00:00]} gxf5 {[%emt 0:00:02]} 26. Rg1 {[%emt 0:00:00]} Kf7 {[%emt 0:00:27]} 27. h4 {[%emt 0:00:00]} Rb8 {[%emt 0:00:12]} 28. Bh5+ {[%emt 0:00:00]} Kf8 {[%emt 0:00:03]} 29. Ra1 {[%emt 0:00:00]} a5 {[%emt 0:00:42]} 30. Be2 {[%emt 0:00:00]} Bc4 {[%emt 0:00:03]} 31. Bd1 {[%emt 0:00:00]} Rd8 {[%emt 0:00:07]} 32. Bc2 {[%emt 0:00:00]} a4 {[%emt 0:01:03]} 33. Rg1 {[%emt 0:00:00]} Bb3 {[%emt 0:00:00]} 34. Bb1 {[%emt 0:00:00]} Rd1 {[%emt 0:00:00]} 35. Rxd1 {[%emt 0:00:00]} Bxd1 {[%emt 0:00:00]} 36. Ba2 {[%emt 0:00:00]} Ke7 {[%emt 0:00:00]} 37. c4 {[%emt 0:00:00]} bxc4 {[%emt 0:00:00]} 38. Bxc4 {[%emt 0:00:00]} h6 {[%emt 0:00:08]} 39. Bb5 {[%emt 0:00:00]} Bb3 {[%emt 0:00:04]} 40. Kd4 {[%emt 0:00:00]} Kf7 {[%emt 0:00:04]} 41. Kc5 {[%emt 0:00:00]} Bd1 {[%emt 0:00:03]} 42. Kd4 {[%emt 0:00:07]} Bb3 $1 {[%emt 0:00:04]} 43. Be2 {[%emt 0:00:04]} Ke7 {[%emt 0:00:10]} 44. Kc5 {[%emt 0:00:14]} Bc2 {[%emt 0:00:00]} 45. Bh5 {[%emt 0:00:04]} Bd3 {[%emt 0:00:01]} 46. Bd1 $2 {[%emt 0:00:09][%mdl 8192]} (46. Kd4 $11) 46... e3 $19 {[%emt 0:00:01]} 47. Kb4 {[%emt 0:00:06]} e2 {[%emt 0:00:01]} 48. Bxe2 {[%emt 0:00:01]} Bxe2 {[%emt 0:00:01]} 49. Kxa4 {[%emt 0:00:01]} Kd7 $2 {[%emt 0:00:00]} (49... Kf7 $19 50. b4 Kg6) 50. Ka5 $11 {[%emt 0:00:08]} Kc6 {[%emt 0:00:01]} 51. b4 {[%emt 0:00:05]} Bd1 {[%emt 0:00:10]} 52. b5+ {[%emt 0:00:17]} Kb7 {[%emt 0:00:07]} 53. Kb4 {[%emt 0:00:04]} Bf3 {[%emt 0:00:02]} (53... Kb6 $5) 54. a4 {[%emt 0:00:01]} Be2 {[%emt 0:00:01]} 55. Kc5 {[%emt 0:00:02]} Kc7 {[%emt 0:00:01]} (55... h5 $5) 56. a5 {[%emt 0:00:05]} Kb7 $2 {[%emt 0:00:03][%mdl 8192]} (56... h5 $11) 57. b6 $2 {[%emt 0:00:02]} (57. Kd6 $18) 57... Bf1 $2 {[%emt 0:00:02][%mdl 8192]} (57... Ka6 $11) 58. Kd6 $18 {[%emt 0:00:02]} Bc4 {[%emt 0:00:01]} 59. Kd7 $2 {[%emt 0:00:01]} (59. h5 $18 Kc8 60. Ke7) 59... Bd5 {[%emt 0:00:02]} 60. Kd6 {[%emt 0:00:05]} Ka6 {[%emt 0:00:03]} 61. Kc7 {[%emt 0:00:01]} h5 {[%emt 0:00:01]} (61... Kxa5 62. b7 Kb5 63. b8=Q+ $18 (63. b8=B $2 Kc4 $19)) 62. Kc8 {[%emt 0:00:04]} Be4 {[%emt 0:00:12]} (62... Kxa5 63. b7 Bxb7+ 64. Kxb7 Kb5 65. Kc7 Kc5 66. Kd7 Kd5 67. Ke7) 63. Kc7 {[%emt 0:00:03]} Bd5 {[%emt 0:00:01]} (63... Kxa5 $2 64. b7 Kb4 65. b8=Q+ $18 (65. b8=B Kc4 $11)) 64. Kc8 {[%emt 0:00:03]} Be4 {[%emt 0:00:05]} (64... Kxa5 $2 65. b7 Kb5 66. b8=Q+ $18 (66. b8=B Kc5 $11)) 65. Kd7 {[%emt 0:00:04]} Bd5 {[%emt 0:00:03]} 66. Kc7 {[%emt 0:00:01]} Be4 {[%emt 0:00:01]} (66... Kxa5 67. b7 Bxb7 68. Kxb7 Kb5 69. Kc7 Kc5 70. Kd7 Kd5 71. Ke7) 67. Kc8 {[%emt 0:00:05]} Bd5 {[%emt 0:00:03]} (67... Kxa5 68. b7 Bxb7+ 69. Kxb7 Kb5 70. Kc7 Kc5 71. Kd7 Kd5 72. Ke7) 68. Kc7 $1 {[%emt 0:00:03]} Be4 {[%emt 0:00:01]} (68... Kxa5 69. b7 Kb5 70. b8=Q+ $18 (70. b8=B $2 Kc4 $19)) 69. Kc8 {[%emt 0:00:16]} Bd5 {[%emt 0:00:14]} (69... Kxa5 70. b7 $18) 1/2-1/2

[Event "Polish University-ch Open 2024"]
[Site "Lublin"]
[Date "2024.02.23"]
[Round "3.6"]
[White "Lewtak, Dominik"]
[Black "Baum, Jonasz"]
[Result "0-1"]
[ECO "B50"]
[WhiteElo "2165"]
[BlackElo "2400"]
[Annotator "TA"]
[PlyCount "46"]
[EventDate "2024.02.22"]
[EventType "swiss"]
[EventCountry "POL"]
[SourceTitle "playchess.com"]
[Source "ChessBase"]
[SourceQuality "1"]
[TimeControl "600+3"]

{[%evp 9,46,0,15,-27,64,-40,-27,-37,-44,-60,-48,-585,-564,-580,-553,-645,-651,-730,-729,-695,-535,-540,-524,-520,-533,-563,-557,-548,-504,-700,-690,-662,-631,-603,-615,-619,-610,-882,-878]} 1. e4 {[%emt 0:00:02]} c5 {[%emt 0:00:00]} 2. Nf3 {[%emt 0:00:03]} d6 {[%emt 0:00:01]} 3. c3 {[%emt 0:00:07]} Nf6 {[%emt 0:00:02]} 4. Bd3 {[%emt 0:00:12]} Nc6 {[%emt 0:00:12]} 5. h3 {[%emt 0:00:10]} g5 {[%emt 0:00:16]} 6. Qb3 {[%emt 0:01:27][%cal Od3c2]} ({Of course not} 6. Nxg5 Rg8 7. Nf3 Rxg2 $15) 6... g4 {[%emt 0:01:27]} (6... h6 $11) 7. Ng5 {[%emt 0:01:02]} (7. hxg4 $14 Nxg4 8. Bc4) 7... e6 $15 {[%emt 0:00:28] ...Rg8 is the strong threat.} 8. hxg4 {[%emt 0:00:30] Black has an edge.} Nxg4 {[%emt 0:00:28]} 9. Nf3 {[%emt 0:00:21]} d5 $1 {[%emt 0:02:03]} 10. Bc2 $2 {[%emt 0:00:53][%mdl 8192] [#] White does not recover from this.} (10. exd5 $15 exd5 11. Bb5) 10... c4 $1 $19 {[%emt 0:00:23] Black is clearly winning.} 11. Qa4 {[%emt 0:01:15]} Bd7 {[%emt 0:00:02] Strongly threatening ...Nce5.} 12. exd5 {[%emt 0:00:05]} Nce5 {[%emt 0:00:37]} 13. Nxe5 {[%emt 0:00:16]} Nxe5 {[%emt 0:00:02]} 14. d4 {[%emt 0:01:41]} Bxa4 {[%emt 0:00:09]} 15. Bxa4+ {[%emt 0:00:02]} Nd7 {[%emt 0:00:01]} 16. dxe6 {[%emt 0:00:01]} fxe6 {[%emt 0:00:02][%cal Oe6e5]} 17. Nd2 {[%emt 0:00:04]} Qc7 {[%emt 0:00:55]} 18. Ne4 {[%emt 0:00:06]} O-O-O {[%emt 0:00:12]} 19. g3 {[%emt 0:00:02]} e5 {[%emt 0:00:04]} 20. Bg5 {[%emt 0:00:04] [#]} Nb6 $1 {[%emt 0:00:25]} 21. Bxd8 {[%emt 0:00:18]} Qxd8 {[%emt 0:00:01]} 22. Bc2 {[%emt 0:00:01]} exd4 {[%emt 0:00:03]} 23. O-O-O {[%emt 0:00:03]} d3 {[%emt 0:00:01] Weighted Error Value: White=0.85/Black=0.27 (precise) .  Loses game:     	White=1     	---        Mistake:       	White=1     	Black=1      Inaccurate:     	White=1     	---        OK:         	White=4     	Black=5      Best:        	White=1     	---        Strong:       	---       	Black=2} 0-1

[Event "Polish University-ch Open 2024"]
[Site "Lublin"]
[Date "2024.02.23"]
[Round "3.7"]
[White "Mis, Mieszko"]
[Black "Garbowski, Jakub"]
[Result "1-0"]
[ECO "D76"]
[WhiteElo "2325"]
[BlackElo "2119"]
[Annotator "TA"]
[PlyCount "59"]
[EventDate "2024.02.22"]
[EventType "swiss"]
[EventCountry "POL"]
[SourceTitle "playchess.com"]
[Source "ChessBase"]
[SourceQuality "1"]
[TimeControl "600+3"]

{[%evp 17,59,4,32,4,6,12,30,11,4,-95,-103,-92,-55,-96,-95,-87,1,-138,-124,-109,-62,-39,0,0,71,61,160,150,170,163,162,162,171,165,218,52,295,304,452,434,915,866,940,906]} 1. Nf3 {[%emt 0:00:02]} Nf6 {[%emt 0:00:04]} 2. c4 {[%emt 0:00:01]} g6 {[%emt 0:00:04]} 3. g3 {[%emt 0:00:03]} Bg7 {[%emt 0:00:04]} 4. Bg2 {[%emt 0:00:03]} O-O {[%emt 0:00:04]} 5. O-O {[%emt 0:00:03]} d5 {[%emt 0:00:36]} 6. cxd5 {[%emt 0:00:06]} Nxd5 {[%emt 0:00:01]} 7. d4 {[%emt 0:00:01]} Nb6 {[%emt 0:00:10]} 8. Nc3 {[%emt 0:00:07]} Nc6 {[%emt 0:00:27][%cal Bb8c6,Bc6a5,Ba5c4][%mdl 32]} 9. e3 {[%emt 0:00:03]} Re8 {[%emt 0:00:25]} 10. Nh4 {[%emt 0:00:05]} e5 {[%emt 0:02:23]} 11. d5 {[%emt 0:00:02]} Na5 {[%emt 0:00:05]} 12. e4 {[%emt 0:00:31] Weiß hat minimalen Vorteil.} c6 {[%emt 0:00:19]} 13. Qe2 {[%emt 0:01:04]} (13. b3 $11) 13... cxd5 $17 {[%emt 0:01:16]} 14. exd5 {[%emt 0:00:02]} Nac4 {[%emt 0:00:18][%cal Oe5e4]} 15. Rd1 {[%emt 0:00:08][%cal Od5d6] [#]} e4 $1 {[%emt 0:00:26]} 16. d6 {[%emt 0:00:47]} (16. Nxe4 $2 f5 17. Bg5 Qd7 $19 (17... Qxg5 $2 18. Nf6+ Qxf6 19. Qxe8+ Qf8 20. Qe2 $19)) 16... f5 {[%emt 0:01:37]} (16... Nxd6 17. Nb5 Be5 (17... Nbc4 18. Bf4 $16) 18. Nxd6 Bxd6 19. Bf4 $11 (19. Bxe4 Qe7 $15)) ({Vorzuziehen ist} 16... Bxc3 $17 17. bxc3 g5 (17... Nxd6 18. Bf4 $11)) 17. Be3 {[%emt 0:00:31]} (17. Nb5 $11) 17... Nxe3 {[%emt 0:00:33]} (17... Nxd6 $2 18. Nb5 Nbc4 19. Bf4 $16) 18. Qxe3 {[%emt 0:00:01]} Be6 {[%emt 0:00:06]} ({Günstiger ist} 18... Nc4 $17 19. Qc1 Be6 (19... Nxd6 20. Nb5 $11)) 19. Bf1 $1 $15 {[%emt 0:00:23]} g5 {[%emt 0:00:40]} 20. Ng2 {[%emt 0:00:02]} Qf6 {[%emt 0:00:04] [#]} (20... Bf7 $11 {hält das Gleichgewicht.}) 21. Nb5 $1 $16 {[%emt 0:00:13]} Red8 {[%emt 0:00:27]} (21... Rf8 $14) 22. Nc7 {[%emt 0:00:07] Weiß steht aktiver.} Rac8 {[%emt 0:00:16]} 23. Nxe6 {[%emt 0:00:04]} Qxe6 {[%emt 0:00:02]} 24. Qxg5 {[%emt 0:00:05]} h6 {[%emt 0:00:01]} 25. Qh5 {[%emt 0:00:11]} Bxb2 {[%emt 0:00:19] [#]} (25... Rc5 {war angesagt.} 26. Rac1 Rxc1 27. Rxc1 Qxd6 28. Qxf5 Qe5) 26. Nf4 $2 {[%emt 0:00:02]} (26. Rab1 $1 $18 {[%cal Rb1b2]} Bg7 27. Ne3) 26... Qf6 {[%emt 0:00:11] Verliert die Partie.} (26... Qf7 $14 27. Qxh6 Bxa1 28. Rxa1 Qf8 29. Qg5+ Qg7 30. Qxg7+ (30. Qxf5 Qxa1 31. Qe6+ Kh7 $11) 30... Kxg7) 27. Rab1 $18 {[%emt 0:00:04][%cal Ba1b1,Bb1b5,Bb5f5,Bf5f4][%mdl 32]} Be5 {[%emt 0:00:04]} (27... e3 {ist eine bessere Verteidigung.} 28. fxe3 Be5) 28. Rb5 {[%emt 0:00:29] Weiß steht klar auf Gewinn.} Bxf4 {[%emt 0:00:15]} (28... e3 $142 29. Ng6 (29. fxe3 Rxd6 30. Rxd6 Qxd6 $18) 29... Bxd6 30. Rxf5 (30. Qxf5 exf2+ 31. Kg2 Qxf5 $11) 30... Qg7 31. fxe3 Nc4 32. Bxc4+ Rxc4) 29. Rxf5 {[%emt 0:00:08]} ({Weniger gut wäre} 29. gxf4 Rxd6 30. Rxd6 (30. Rxf5 Qg6+ 31. Qxg6+ Rxg6+ 32. Kh1 Na4 $11) 30... Qxd6 $16) 29... Qg7 {[%emt 0:00:08]} 30. Rxf4 {[%emt 0:00:02] Gewichteter Fehlerwert: Weiß=0.35/Schwarz=0.53.  Verlustzug:     	---       	Schwarz=1     Gewinn verpasst:   	Weiß=1     	---        Fehler:       	Weiß=2     	Schwarz=7     Ungenau:       	Weiß=1     	Schwarz=2     OK:         	Weiß=5     	Schwarz=5     Bester:       	Weiß=5     	Schwarz=1     Stark:        	Weiß=2     	---} 1-0

[Event "Polish University-ch Open 2024"]
[Site "Lublin"]
[Date "2024.02.23"]
[Round "3.8"]
[White "Golecki, Jan"]
[Black "Kowalski, Igor"]
[Result "0-1"]
[ECO "B06"]
[WhiteElo "2185"]
[BlackElo "2372"]
[Annotator "TA"]
[PlyCount "130"]
[EventDate "2024.02.22"]
[EventType "swiss"]
[EventCountry "POL"]
[SourceTitle "playchess.com"]
[Source "ChessBase"]
[SourceQuality "1"]
[TimeControl "600+3"]

{[%evp 22,130,-39,-163,-124,-114,-97,-96,-101,-99,-106,-106,-98,-120,-112,-127,-116,-119,-115,-116,-106,-135,-130,-199,-182,-199,-188,-209,-209,-200,-183,-177,-186,-179,-120,-129,-118,-122,-117,-120,-106,-107,-89,-98,-95,-104,-105,-112,-111,-168,-176,-176,-208,-206,-178,-236,-235,-278,-232,-221,-60,-60,-60,-69,-72,-69,-69,-81,-56,-65,-52,-74,-77,-245,-235,-245,-230,-356,-348,-891,-1056,-748,-711,-957,-618,-370,-305,-1052,-83,-105,-8,-8,-8,-8,-8,-8,-8,-29974,-29975,-29975,-29976,-29980,-29981,-29983,-29984,-29984,-29985,-29985,-29983,-29983,-29983]} 1. e4 {[%emt 0:00:03]} g6 {[%emt 0:00:06]} 2. d4 {[%emt 0:00:06]} Bg7 {[%emt 0:00:01]} 3. Nf3 {[%emt 0:00:02]} d6 {[%emt 0:00:02]} 4. Bc4 {[%emt 0:00:07]} e6 {[%emt 0:00:02]} 5. O-O {[%emt 0:00:18]} Ne7 {[%emt 0:00:02]} 6. Nc3 {[%emt 0:00:14]} a6 {[%emt 0:00:05]} 7. a4 {[%emt 0:00:12]} b6 {[%emt 0:00:03]} 8. Qe2 {[%emt 0:00:59] B06: Modern Defence.} Bb7 {[%emt 0:00:03]} 9. e5 $146 {[%emt 0:01:09]} ({Predecessor:} 9. h3 h6 10. Bf4 g5 11. Bg3 Ng6 12. d5 Qe7 13. e5 exd5 14. Nxd5 Bxd5 15. Bxd5 {½-½ Madaminov,M (2404)-Nakamura,H (2760) Titled Tuesday intern op 28th Jun Early blitz 2022 (3)}) 9... Bxf3 {[%emt 0:02:38]} 10. Qxf3 {[%emt 0:00:02]} d5 {[%emt 0:00:06]} 11. Bd3 {[%emt 0:03:18]} c5 {[%emt 0:00:05]} 12. Be3 {[%emt 0:00:02]} (12. Ne2 $1 $15) 12... cxd4 {[%emt 0:00:15]} 13. Bxd4 {[%emt 0:00:01]} Nbc6 {[%emt 0:00:01]} 14. Ne2 {[%emt 0:01:44]} Nxd4 {[%emt 0:00:05]} (14... Bxe5 $2 {is the wrong capture.} 15. Bxe5 Nxe5 16. Qf6 $18) 15. Nxd4 {[%emt 0:00:01]} Bxe5 {[%emt 0:00:02]} 16. c3 {[%emt 0:00:29]} O-O {[%emt 0:00:19]} 17. Nb3 {[%emt 0:00:12]} Bg7 {[%emt 0:01:07]} 18. h4 {[%emt 0:00:10]} e5 {[%emt 0:00:05]} 19. Qe2 {[%emt 0:00:07]} a5 {[%emt 0:00:55]} 20. Rfd1 {[%emt 0:00:11]} Qc8 {[%emt 0:00:34]} 21. Rac1 {[%emt 0:00:01]} Qe6 {[%emt 0:00:40]} 22. c4 {[%emt 0:00:30]} (22. Bc2 $17) 22... d4 $19 {[%emt 0:00:04]} ({Don't take} 22... e4 23. Bb1 $17) 23. Nd2 {[%emt 0:00:07]} Rac8 {[%emt 0:00:14]} 24. Ne4 {[%emt 0:00:02]} Bh6 {[%emt 0:00:25]} 25. Ng5 {[%emt 0:00:18]} Bxg5 {[%emt 0:00:07]} 26. hxg5 {[%emt 0:00:01]} Rc5 {[%emt 0:00:10]} 27. b3 {[%emt 0:00:01]} f5 {[%emt 0:00:34]} (27... Nc6 $19 28. Re1 Kg7) 28. gxf6 $17 {[%emt 0:00:02]} Rxf6 {[%emt 0:00:02]} 29. Be4 {[%emt 0:00:00]} Kg7 {[%emt 0:00:05]} 30. Rd3 {[%emt 0:00:04]} Rf4 {[%emt 0:00:15]} 31. Re1 {[%emt 0:00:12]} Qg4 {[%emt 0:00:55]} (31... Nc6 {keeps more tension.} 32. Rh3 Nb4 33. Qd2 Qd6) 32. Bf3 {[%emt 0:00:23]} Qg5 {[%emt 0:00:05]} 33. g3 {[%emt 0:00:11]} Rf7 {[%emt 0:00:41]} 34. Be4 {[%emt 0:00:08]} h5 {[%emt 0:00:05]} 35. Rf3 {[%emt 0:00:02]} (35. Qd2 $17 Qxd2 36. Rxd2) 35... Rxf3 $19 {[%emt 0:00:19]} 36. Qxf3 {[%emt 0:00:01]} h4 {[%emt 0:00:06]} 37. Kg2 {[%emt 0:00:11]} Rc8 {[%emt 0:00:04]} 38. Bd5 {[%emt 0:00:04]} (38. Bb1 {was worth a try.}) 38... Rf8 $19 {[%emt 0:00:08]} 39. Qe4 {[%emt 0:00:01]} hxg3 {[%emt 0:00:04]} 40. fxg3 {[%emt 0:00:03] [#]} Rf5 $2 {[%emt 0:00:15]} (40... Kf6 $1 $19 {aiming for ...Rh8.} 41. Qe2 Rh8) 41. Be6 $15 {[%emt 0:00:01]} Rf6 $1 {[%emt 0:00:05]} ({But not} 41... Qd2+ $2 42. Re2 Qd1 43. Bxf5 Nxf5 44. Qxe5+ Kh7 45. Qc7+ Ng7 46. Qe7 $18) 42. Qxe5 {[%emt 0:00:03]} Qxe5 {[%emt 0:00:01]} 43. Rxe5 {[%emt 0:00:01]} Nc6 {[%emt 0:00:03]} 44. Re1 {[%emt 0:00:02]} d3 {[%emt 0:00:01]} 45. Bg4 {[%emt 0:00:06]} Rd6 {[%emt 0:00:02]} 46. Re8 {[%emt 0:00:06]} Nd4 {[%emt 0:00:05]} 47. Kf2 $2 {[%emt 0:00:07]} (47. Bd1 $17) 47... Nxb3 $19 {[%emt 0:00:02]} 48. Bd1 {[%emt 0:00:05]} Nc5 {[%emt 0:00:03]} 49. g4 {[%emt 0:00:02]} (49. Ke3 {was necessary.}) 49... Kf6 $19 {[%emt 0:00:03]} 50. Ke3 $2 {[%emt 0:00:01]} (50. Rg8) 50... Re6+ $19 {[%emt 0:00:03]} 51. Rxe6+ {[%emt 0:00:01]} Kxe6 {[%emt 0:00:01]} 52. Kd4 {[%emt 0:00:01]} Kf6 {[%emt 0:00:03]} 53. Kd5 {[%emt 0:00:02]} d2 {[%emt 0:00:01]} 54. Kc6 $2 {[%emt 0:00:02]} (54. Kd4) 54... Ne4 $2 {[%emt 0:00:02]} (54... Ke5 $19 {has better winning chances.} 55. Kxb6 Kd4) 55. Kxb6 $17 {[%emt 0:00:02] [#]} Nc3 {[%emt 0:00:02]} (55... Nf2 $1 $17 {[%cal Rf2d1]} 56. Be2 Ke5) 56. Bc2 $11 {[%emt 0:00:01]} d1=Q 57. Bxd1 {[%emt 0:00:00]} Nxd1 {[%emt 0:00:15]} 58. c5 {[%emt 0:00:01]} Nc3 {[%emt 0:00:01]} 59. c6 $2 {[%emt 0:00:01][%mdl 8192]} (59. Kxa5 $11 Ke6 60. Kb4 Nd5+ 61. Kb5) 59... Nxa4+ {[%emt 0:00:03]} 60. Kxa5 {[%emt 0:00:03]} Nc5 {[%emt 0:00:01]} 61. Kb6 {[%emt 0:00:01]} Ne6 {[%emt 0:00:02]} 62. Kb5 {[%emt 0:00:01]} Kg5 {[%emt 0:00:01]} 63. Kc4 {[%emt 0:00:01]} Kxg4 {[%emt 0:00:02]} 64. Kd5 {[%emt 0:00:00]} Nc7+ {[%emt 0:00:01]} 65. Kd6 {[%emt 0:00:01]} Na6 {[%emt 0:00:00]} 0-1